Cogmind - Beta 12 @@@ ROGUE MODE // 2023.12.02 @ 18:58:54 Player: charson Result: Destroyed by D-53 Grenadier with Mini Grenade Launcher Performance ------------- Evolutions (0) 0 Regions Visited (2) 400 Robots Destroyed (17) 85 Value Destroyed (269) 269 Prototype IDs (0) 0 Alien Tech Used (0) 0 Bonus (0) 0 TOTAL SCORE: 754 Bonus ------- None Cogmind --------- Core Integrity 0/250 Matter 283/300 Energy 97/100 System Corruption 5% Temperature Cool (10) Movement Core (50) Location -10/Mines Parts ------- > --- POWER (1) -------- (None) > --- PROPULSION (2) --- (None) > --- UTILITY (2) ------ Improved Terrain Scanner Utility Shielding > --- WEAPON (2) ------- Light Assault Rifle > --- INVENTORY (5) ---- Medium Matter Pod (38) Signal Interpreter Hacking Suite Mining Claw Peak State ------------ > --- POWER ------------ Light Ion Engine > --- PROPULSION ------- (None) > --- UTILITY ---------- Structural Scanner Improved Terrain Scanner > --- WEAPON ----------- Small Laser Light Assault Rifle > --- INVENTORY -------- Signal Interpreter Utility Shielding Hacking Suite Mining Claw [Rating: 7] Favorites ----------- Power Light Ion Engine Engine Light Ion Engine Propulsion None Utility Improved Terrain Scanner Device Improved Terrain Scanner Protection Utility Shielding Weapon Light Assault Rifle Energy Gun Small Laser Ballistic Gun Light Assault Rifle Build | -11 -10 -10 ------- Run | Jun Mat Min Slots Evolved . | . . . Power . | . . . Propulsion . | . . . Utility . | . . . Weapon . | . . . Parts Attached 13 | 3 6 4 Power 1 | . . 1 Engine 1 | . . 1 Core . | . . . Reactor . | . . . Propulsion . | . . . Treads . | . . . Leg . | . . . Wheel . | . . . Hover . | . . . Flight . | . . . Utility 4 | 1 2 1 Device 3 | 1 2 . Storage . | . . . Processor . | . . . Hackware . | . . . Protection 1 | . . 1 Artifact . | . . . Weapon 8 | 2 4 2 Energy Gun 4 | 2 1 1 Energy Cannon . | . . . Ballistic Gun 4 | . 3 1 Ballistic Cannon . | . . . Launcher . | . . . Special Weapon . | . . . Impact Weapon . | . . . Slashing Weapon . | . . . Piercing Weapon . | . . . Special Melee Weapon . | . . . Unidentified Prototypes . | . . . Parts Lost 7 | . 2 5 Power 1 | . . 1 Propulsion . | . . . Utility 1 | . . 1 Weapon 5 | . 2 3 Highest Loss Streak 2 | . 2 2 To Critical Strikes . | . . . Average Slot Usage (%) 58 | . 53 64 Engine 4 | . . 9 Device 26 | . 26 25 Energy Gun 12 | . 11 13 Ballistic Gun 14 | . 14 14 Naked Turns . | . . . Heaviest Build 7 | 4 5 7 Greatest Support 3 | 3 3 3 Greatest Overweight (x) 2 | 1 1 2 Average Overweight (x) 1 | . 1 1 Largest Inventory Capacity 5 | 5 5 5 Average Capacity 5 | 5 5 5 Most Carried 5 | 1 5 5 Average Carried 3 | . 3 4 Final Capacity 5 | 5 5 5 Final Carried 5 | 1 5 4 Class Distribution -------------------- 65% | Mutant 34% | Scavenger-Mutant Dominant Class ---------------- Mutant | -10/Materials Scavenger-Mutant | -10/Mines Resources | -11 -10 -10 ----------- Run | Jun Mat Min Matter Collected 398 | 230 120 48 Remotely . | . . . Salvage Created 502 | 104 304 94 Parts 31 | 3 21 7 Haulers Intercepted . | . . . Recyclers Shooed 1 | . 1 . Parts Field Recycled . | . . . Retrieved Matter . | . . . Parts Self-Destructed . | . . . Prevented . | . . . Kills | -11 -10 -10 ------- Run | Jun Mat Min Combat Hostiles Destroyed 15 | . 10 5 Guns 15 | . 10 5 Classes Destroyed 7 | 2 3 2 Worker 1 | . . 1 Tunneler 1 | 1 . . Recycler 1 | 1 . . Operator 1 | . 1 . Swarmer 9 | . 6 3 Grunt 4 | . 4 . Assembled 2 | . . 2 Best Kill Streak 4 | 2 4 4 Combat Bots Only 4 | . 4 3 Max Kills in Single Turn 2 | 1 2 1 Gunslinging 1 | . 1 . Exploded . | . . . Melee . | . . . Uniques/NPCs Destroyed . | . . . Combat | -11 -10 -10 -------- Run | Jun Mat Min Damage Taken 778 | . 487 291 Core 260 | . 137 123 Absorbed by Shields . | . . . Core Remaining (%) 100 | 100 . . Volleys Fired 57 | 9 37 11 Largest 2 | 2 2 2 Hottest 90 | 90 90 70 Shots Fired 102 | 18 63 21 Gun 102 | 18 63 21 Cannon . | . . . Launcher . | . . . Special . | . . . Kinetic 50 | . 40 10 Thermal 52 | 18 23 11 Explosive . | . . . Electromagnetic . | . . . Robot Hit Streak 13 | 5 13 5 Robot Miss Streak 7 | 2 7 1 Penetration Max . | . . . Secondary Targets 3 | . 2 1 Max Gunslinging Chain 1 | . 1 1 Shots Hit Robots 68 | 12 43 13 Core Hits 28 | 3 18 7 Critical Kills . | . . . Critical Parts Destroyed . | . . . Critical Strikes . | . . . Melee Attacks . | . . . Impact . | . . . Slashing . | . . . Piercing . | . . . Sneak Attacks . | . . . Combat Hostiles . | . . . Follow-up Attacks . | . . . Damage Inflicted 741 | 141 471 129 Guns 737 | 141 467 129 Cannons . | . . . Explosions . | . . . Melee . | . . . Ramming 4 | . 4 . Kinetic 376 | . 338 38 Thermal 361 | 141 129 91 Explosive . | . . . Electromagnetic . | . . . Impact . | . . . Slashing . | . . . Piercing . | . . . Highest Corruption 5 | . . 5 Average Corruption 5 | . . 5 Corruption Purged . | . . . Corruption Blocked . | . . . Effects 1 | . . 1 Matter Fused 1 | . . 1 Overload Shots . | . . . Overflow Damage . | . . . Projectiles . | . . . Explosions . | . . . Melee . | . . . Knockbacks . | . . . Impact . | . . . Kinetic . | . . . Secondary . | . . . Self-Inflicted Damage 2 | . 2 . Shots . | . . . Rammed 1 | . 1 . Targets Rammed 1 | . 1 . Kicked . | . . . Crushed . | . . . Highest Temperature 120 | 120 90 25 Average Temperature 36 | 62 29 11 Received Heat Transfer 180 | . 180 . Siege Activations . | . . . Robots Corrupted . | . . . Combat Hostiles . | . . . Parts Fried . | . . . Impact Corruptions . | . . . Robots Melted . | . . . Combat Hostiles . | . . . Parts Melted 2 | . 2 . Heat Transferred 931 | 360 371 200 Parts Sabotaged . | . . . Parts Stolen . | . . . Parts Stripped . | . . . Power Chain Reactions . | . . . Missiles Intercepted . | . . . Alert | -11 -10 -10 ------- Run | Jun Mat Min Peak Influence 261 | 10 261 156 Initial 101 | . 6 101 Average 138 | 3 169 134 Maximum Alert Level 1 | . 1 . Low Security (%) 79 | 100 57 100 Level 1 20 | . 42 . Level 2 . | . . . Level 3 . | . . . Level 4 . | . . . Level 5 . | . . . High Security . | . . . Max Security . | . . . Squads Dispatched 1 | . 1 . Investigation . | . . . Extermination . | . . . Reinforcement 1 | . 1 . Assault . | . . . Garrison . | . . . Intercept . | . . . Searches Triggered . | . . . Construction Impeded . | . . . Haulers Reinforced . | . . . Active Scanning Responses . | . . . Cargo Convoy Interrupts . | . . . Stealth | -11 -10 -10 --------- Run | Jun Mat Min Distress Signals . | . . . Communications Jammed . | . . . Distress Signals . | . . . Times Spotted 21 | . 11 10 Peak Tracking Total 5 | . 3 5 Tactical Retreats 1 | . . 1 Traps | -11 -10 -10 ------- Run | Jun Mat Min Traps Triggered . | . . . Indirectly . | . . . Trap Hack Attempts . | . . . Triggered . | . . . Disarmed . | . . . Reprogrammed . | . . . Reused . | . . . Traps Extracted . | . . . Installed . | . . . Triggered . | . . . Machines | -11 -10 -10 ---------- Run | Jun Mat Min Machines Disabled . | . . . Max in Single Turn . | . . . Machines Repaired . | . . . Machines Sabotaged . | . . . Overloaded Fab Kills . | . . . Hacking | -11 -10 -10 --------- Run | Jun Mat Min Machines Accessed . | . . . Terminals . | . . . Fabricators . | . . . Repair Stations . | . . . Recycling Units . | . . . Scanalyzers . | . . . Garrison Access . | . . . Total Hacks . | . . . Successful . | . . . Failed . | . . . Catastrophic . | . . . Database Lockouts . | . . . Manual . | . . . Terminals . | . . . Fabricators . | . . . Repair Stations . | . . . Recycling Units . | . . . Scanalyzers . | . . . Garrison Access . | . . . Terminal Hacks . | . . . Fabricator Hacks . | . . . Repair Station Hacks . | . . . Recycling Unit Hacks . | . . . Scanalyzer . | . . . Garrison Access Hacks . | . . . Unauthorized Hacks . | . . . Terminals . | . . . Fabricators . | . . . Repair Stations . | . . . Recycling Units . | . . . Scanalyzers . | . . . Garrison Access . | . . . Data Cores Recovered . | . . . Used . | . . . Hacking Detections . | . . . Full Trace Events . | . . . Feedback Events . | . . . Feedback Blocked . | . . . Robot Schematics Acquired . | . . . Robots Built . | . . . Authchips . | . . . Time . | . . . Total Robot Build Rating . | . . . Part Schematics Acquired . | . . . Parts Built . | . . . Authchips . | . . . Time . | . . . Total Part Build Rating . | . . . Parts Repaired . | . . . Time . | . . . Parts Recycled . | . . . Recycled Matter . | . . . Retrieved Matter . | . . . Retrieved Components . | . . . Parts Scanalyzed . | . . . Part Schematics Acquired . | . . . Parts Damaged . | . . . Bothacking | -11 -10 -10 ------------ Run | Jun Mat Min Used RIF Installer . | . . . Robots Hacked . | . . . Non-combat . | . . . Combat . | . . . Robot Hacks Applied . | . . . Relay Couplers Released . | . . . Fabnet Peak Effective % . | . . . Robots Rewired . | . . . Allies Hacked . | . . . Hacks Repelled . | . . . Allies | -11 -10 -10 -------- Run | Jun Mat Min Total Allies 3 | . . 3 Largest Group 3 | . . 3 Highest-Rated Group 40 | . . 40 Highest-Rated Ally 16 | . . 16 Total Orders . | . . . Ally Attacks 6 | . . 6 Total Damage 53 | . . 53 Kills 1 | . . 1 Allies Corrupted 1 | . . 1 Allies Melted . | . . . Intel | -11 -10 -10 ------- Run | Jun Mat Min Robot Analysis Total . | . . . Derelict Logs Recovered 1 | . . 1 Drone Launches . | . . . Drone Recoveries . | . . . Exploration | -11 -10 -10 ------------- Run | Jun Mat Min Turns Passed 588 | 58 289 241 Spaces Moved 336 | 38 142 156 Core 336 | 38 142 156 Treads . | . . . Legs . | . . . Wheels . | . . . Hover . | . . . Flight . | . . . Fastest Speed 50 | 50 100 50 Average Speed 104 | 65 100 116 Slowest Speed 150 | 100 100 150 Overloaded Moves . | . . . Propulsion Burnouts . | . . . Robots Hopped . | . . . Cave-ins Triggered . | . . . Exploration Rate (%) 20 | 3 29 30 Regions Visited 2 Branch Regions 1 Pre-discovered Areas . | . . . Known Exits Taken . | . . . Unknown Exits Taken 2 | 1 1 . Scrap Searched . | . . . Spaces Dug . | . . . Terrain Destroyed . | . . . Melee . | . . . Projectile . | . . . AOE . | . . . Terrain Rammed . | . . . Walls Destroyed . | . . . Machines Disabled . | . . . Actions | -11 -10 -10 --------- Run | Jun Mat Min Total 475 | 51 229 195 Wait 57 | 1 35 21 Move 334 | 37 141 156 Hop . | . . . Pick Up 9 | 1 6 2 Fast Attach 7 | 3 2 2 Attach 4 | . 2 2 Detach 1 | . 1 . Swap 2 | . 2 . Drop 3 | . 2 1 Fire 57 | 9 37 11 Melee . | . . . Ram 1 | . 1 . Kick . | . . . Crush . | . . . Escape Stasis . | . . . Rewire . | . . . Trap . | . . . Miscellaneous . | . . . Route ------- -11/Junkyard -10/Materials -10/Mines (discovered 1 exit: [*Mat]) History --------- Turn | Location | Event 8 | -11/Junkyard | Discovered new exit (range 15) 59 | -11/Junkyard | Entered Materials 262 | -10/Materials | Core integrity fell below 50% 287 | -10/Materials | Discovered new exit (range 15) 348 | -10/Materials | Entered Mines 348 | -10/Mines | Discovered new exit (range 12) 350 | -10/Mines | Build established: Mutant 410 | -10/Mines | Learned Materials stockpile data 471 | -10/Mines | Assisted by bots powering up and referring to "LRC-V3" 501 | -10/Mines | Assembled infested the area 506 | -10/Mines | Assisted by a Guerilla fighting off Assembled 549 | -10/Mines | Core integrity fell below 20% 589 | -10/Mines | Destroyed by D-53 Grenadier with Mini Grenade Launcher Last Messages --------------- I've been tracking a group of Assembled to figure out where they're coming from, and they're closing on this area, come on!" 00509_ 98-NPM(h) knocked back. 00511_ 98-NPM(h): "I'll hold them off! Go on ahead or try to find another way!" 00513_ 98-NPM(h) knocked back. 00515_ as-51151 destroyed. 00516_ 98-NPM(h) knocked back. 00517_ HV Slug penetrates as-41281. 00517_ as-41281 suffers critical hit (Destroy). 00517_ as-41281 destroyed. 00529_ Mercenary 1a destroyed. 00543_ Structural Scanner destroyed. 00543_ System corrupted by crushing effect (+5). 00547_ as-88892 destroyed. 00548_ Lgt. Ion Engine destroyed. 00549_ as-79116 destroyed. 00557_ K-01 Serf collects debris. 00578_ System corrupted: Matter fused (-10). 00589_ Sml. Laser destroyed. Map ----- +----------------------------------------------------+ | ?#?????### ###????????????????????????????????? | | ??#????## ##??? ?????????????#??????????????? | | ???????## ##?#?????????????? ???????????????? | | ???????### ###??"????????????? ???????????????? | | ?????#??## ###### ???????????????? ???????????? | | ?????##### #######????????????????????????????? | | ????###### ##????? #???????????????????? | | ??##### ### ###%###### %##???????????????????? | | ###### ###%###### %###??????????????????? | | #### ### %%% ##??????????????????? | | #### ########## = ##?????????????????? | | #### ########## * #?????????????????? | | ##### ###??????? #?????????????????? | | # ##### ##???????? % #?????????????????? | | ###?## ##??#??##?# ##?????????????????? | | ########?### ##??????? #?????????????????? | | #######??### ###????### #?????????????????? | | ??????#???## ###### #??????????????????? | | ????#??#??### #???????????????????? | | ?#???#????### ## #???????????????????? | | ???#?????#??# #### % ##???#??????????????? | | ?#??????????# #### #??????????????????? | | ??#?#?##???## ## # ## #????? ????????????? | | ????????#### ## d #??????????????????? | | ??#?#???# ## d #????? ????????????? | | ???????# ### @ #??????????????????? | | ???????# ####?# ##??????????????????? | | ???????# ####????# #??????????????????? | | ???????# ##???????# < ##??????#???????????? | | ???????## #?????????## ##???????????????????? | | ????????###???????????# #??????#?????????????? | | ?????????????#????????## #???#???????????????? | | ?#????????????#????????## #???????????????????? | | ????????????????????????## ##???????????????????? | | ?????????????????#????????###????????????????????? | | ?????????????????????????????????????????????????? | | ?????????????????????????????????????????????????? | | "?????????????#??????????????????????????????????? | | ""???????????????????????????????????????????????? | | ???????????????????????????????????????????????? | | ?????????????????????????????????????????????????? | | ?????????????????????????????????????????????????? | | ?????????????????????????????????????????????????? | | ?????????????????????????????????????????????????? | | ?????????????????????????????????????????????????? | | ?????????????????????????????????????????????????? | | ?????????????????????????????????????????????????? | | ?????????????????????????????????????????????????? | | ?????????????????????????????????????????????????? | | ?????????????????????????????????????????????????? | +----------------------------------------------------+ Best States ------------- Heat Dissipation 25 Energy Generation 10 Energy Capacity 125 Matter Stores 300 Matter Capacity 300 Sight Range 16 Terrain Scan Range 16 Terrain Scan Density 10 Utility Shielding 33 Evasion (%) 50 Item Schematics ----------------- None Robot Schematics ------------------ None Fabricated ------------ Nothing Alien Tech Used ----------------- None Achievements -------------- None Challenges ------------ None Game ------ Seed NovaFlyingCharger Manual? 0 Play Time 00:06:26 Cumulative 45.7 hours Start 2023.12.02 @ 18:54:25 End 2023.12.02 @ 18:58:54 Sessions 1 Manual Loads 0 Difficulty Rogue Special Mode None Game No. 31 Rogue 31 Adventurer 0 Explorer 0 Win Type - Total 0 Types 0/0/0/0/0/0/0/0/0 Lore% 46 Gallery% 52 Achievement% 45 Wizard Run 0 Options --------- ASCII 0 Keyboard 1 Movement Numpad Keybinds 0 Fullscreen 1 Font 18/SmallcapsGlow Map View 76x50 Tactical HUD 1 Map Filters NONE Filters NONE Steam 1 RUN: 071e2134-57f0-4fc2-b86e-3cc56efc07dc